fUSD/lending_fUSD_20240701
["ID","MTS","AMOUNT","RATE_DAILY","PERIOD"]
[330854122,1719867039102,-150.0,0.00021679,2]
[330854123,1719867039112,-150.0,0.00021688,2]
[330854124,1719867039123,-150.0,0.00021692,2]
[330854125,1719867039133,-150.0,0.00021693,2]
[330854126,1719867039143,-150.0,0.00021693,2]
[330854127,1719867039153,-150.0,0.00021695,2]
[330854128,1719867039164,-1300.0,0.000217,7]
[330854129,1719867039174,-30228.11923521,0.000217,2]
[330854130,1719867039184,-779.90851,0.000217,2]
[330854131,1719867039194,-150.0,0.00021702,2]
[330854132,1719867039203,-150.0,0.00021703,2]
[330854133,1719867039213,-3010.1808,0.00021705,2]
[330854134,1719867039224,-153.31501807,0.00021705,2]
[330854135,1719867039234,-150.0,0.00021717,2]
[330854136,1719867039243,-150.0,0.00021726,2]
[330854137,1719867039253,-150.0,0.00021727,2]
[330854138,1719867039262,-150.0,0.0002173,2]
[330854139,1719867039272,-150.0,0.0002173,2]
[330854140,1719867039281,-342.96601396,0.00021733,2]
[330854141,1719867039291,-1089.40475486,0.00021733,2]
[330854142,1719867039300,-151.0,0.00021748,4]
[330854143,1719867039310,-1000.0,0.0002175,4]
[330854144,1719867039320,-150.0,0.00021753,2]
[330854145,1719867039329,-150.0,0.00021758,2]
[330854146,1719867039339,-150.0,0.00021761,2]
[330854147,1719867039349,-153.31501805,0.00021769,2]
[330854148,1719867039359,-150.0,0.00021774,2]
[330854149,1719867039370,-367.86522223,0.00021778,2]
[330854150,1719867039380,-150.0,0.00021778,2]
[330854151,1719867039390,-150.0,0.00021781,2]
[330854152,1719867039400,-150.0,0.00021781,2]
[330854153,1719867039410,-150.0,0.0002179,2]
[330854154,1719867039420,-501.1919,0.00021799,2]
[330854155,1719867039430,-1856.0,0.000218,7]
[330854156,1719867039439,-30037.0164,0.000218,2]
[330854157,1719867039448,-8539.83405619,0.00021805,2]
[330854158,1719867039461,-25237.46888027,0.00021805,2]
[330854159,1719867039514,-21000.47756354,0.00021805,2]
[330854160,1719867039524,-500.0,0.00021805,2]
[330854161,1719867039533,-150.0,0.00021807,2]
[330854162,1719867039542,-150.0,0.00021811,2]
[330854163,1719867039552,-1000.0,0.00021817,2]
[330854164,1719867039561,-25000.0,0.00021817,2]
[330854165,1719867039571,-1000.0,0.00021817,2]
[330854166,1719867039580,-7500.0,0.00021817,2]
[330854167,1719867039590,-171.62856956,0.00021817,2]
[330854169,1719867039600,-165.95795148,0.00021817,2]
[330854170,1719867039610,-4935.43816074,0.00021817,2]
[330854171,1719867039620,-175.248,0.00021818,2]
[330854172,1719867039630,-5172.0,0.00021818,2]
[330854173,1719867039639,-291.0,0.00021818,2]
[330854174,1719867039649,-2013.36872652,0.00021818,2]
[330854175,1719867039661,-11240.26555733,0.00021818,2]
[330854176,1719867039676,-1579.841844,0.00021818,2]
[330854177,1719867039695,-753.50015,0.00021818,2]
[330854178,1719867039706,-630.32,0.00021818,2]
[330854180,1719867039719,-17037.58572215,0.00021818,2]
[330854182,1719867039728,-213.532,0.00021818,2]
[330854184,1719867039738,-150.0,0.0002182,2]
[330854185,1719867039749,-150.0,0.00021821,2]
[330854186,1719867039758,-153.31501805,0.00021834,2]
[330854187,1719867039767,-150.0,0.00021837,2]
[330854188,1719867039777,-500.0,0.00021839,2]
[330854189,1719867039787,-1000.0,0.0002184,2]
[330854190,1719867039797,-500.0,0.00021848,2]
[330854191,1719867039807,-150.0,0.0002185,2]
[330854192,1719867039817,-384.77028012,0.0002185,2]
[330854193,1719867039827,-500.0,0.00021856,2]
[330854194,1719867039837,-150.0,0.0002186,2]
[330854195,1719867039847,-1500.0,0.00021862,2]
[330854196,1719867039856,-500.0,0.00021865,2]
[330854197,1719867039866,-543.0,0.0002187,2]
[330854198,1719867039876,-4935.43816067,0.0002187,2]
[330854199,1719867039886,-150.0,0.00021871,2]
[330854200,1719867039895,-150.0,0.00021873,2]
[330854201,1719867039904,-500.0,0.00021874,2]
[330854202,1719867039913,-150.0,0.00021878,2]
[330854203,1719867039923,-90001.64958044,0.00021879,4]
[330854204,1719867039932,-500.0,0.00021883,2]
[330854205,1719867039941,-150.0,0.00021884,2]
[330854206,1719867039950,-16941.9563614,0.0002189,3]
[330854207,1719867039960,-220.15,0.0002189,3]
[330854208,1719867039969,-500.0,0.00021892,2]
[330854209,1719867039978,-16941.9563614,0.00021896,3]
[330854210,1719867039988,-153.31501805,0.00021898,2]
[330854211,1719867039997,-178.59443935,0.00021899,2]
[330854212,1719867040006,-175.04572027,0.00021899,2]
[330854213,1719867040016,-1000.0,0.000219,7]
[330854214,1719867040026,-1017.0,0.000219,9]
[330854215,1719867040035,-2500.0,0.000219,2]
[330854216,1719867040045,-491.0,0.000219,4]
[330854217,1719867040054,-326.0,0.000219,4]
[330854218,1719867040063,-1985.534929,0.000219,2]
[330854219,1719867040073,-342.96601396,0.000219,2]
[330854220,1719867040082,-1089.40475486,0.000219,2]
[330854221,1719867040092,-500.0,0.000219,2]
[330854222,1719867040101,-150.0,0.00021901,2]
[330854223,1719867040110,-664.9152384,0.00021906,2]
[330854224,1719867040120,-207.2536607,0.00021906,2]
[330854225,1719867040129,-467.7570453,0.00021906,2]
[330854226,1719867040138,-20374.2501732,0.00021906,2]
[330854227,1719867040147,-760.2730687,0.00021906,2]
[330854228,1719867040156,-2902.1709748,0.00021906,2]
[330854229,1719867040166,-5900.0,0.00021906,7]
[330854230,1719867040176,-147432.0138676,0.00021907,3]
[330854231,1719867040283,-676.65434901,0.00021907,3]
[330854232,1719867040294,-207672.41537239,0.00021907,3]
[330854233,1719867040304,-150.0,0.00021907,2]
[330854234,1719867040314,-16941.9563614,0.00021908,3]
[330854235,1719867040323,-500.0,0.00021909,2]
[330854236,1719867040333,-16941.9563614,0.00021911,3]
[330854237,1719867040342,-1981.54126051,0.00021916,2]
[330854238,1719867040351,-300.0,0.00021916,2]
[330854239,1719867040361,-4279.14032286,0.00021917,15]
[330854240,1719867040371,-581.33393112,0.00021917,2]
[330854241,1719867040381,-550.47298576,0.00021917,2]
[330854242,1719867040390,-155.0,0.00021917,2]
[330854243,1719867040400,-881.13956643,0.00021917,2]
[330854244,1719867040410,-500.0,0.00021917,4]
[330854245,1719867040420,-500.0,0.00021917,4]
[330854246,1719867040429,-500.0,0.00021917,4]
[330854247,1719867040438,-500.0,0.00021917,4]
[330854248,1719867040448,-500.0,0.00021917,4]
[330854249,1719867040457,-500.0,0.00021917,4]
[330854250,1719867040466,-500.0,0.00021917,4]
[330854251,1719867040475,-500.0,0.00021917,4]
[330854252,1719867040484,-500.0,0.00021917,4]
[330854253,1719867040493,-500.0,0.00021917,4]
[330854254,1719867040503,-500.0,0.00021917,4]
[330854255,1719867040512,-500.0,0.00021917,4]
[330854256,1719867040522,-517.34,0.00021917,4]
[330854257,1719867040531,-500.0,0.00021917,4]
[330854258,1719867040541,-500.0,0.00021917,4]
[330854259,1719867040550,-500.0,0.00021917,4]
[330854260,1719867040560,-500.0,0.00021917,4]
[330854261,1719867040569,-500.0,0.00021917,4]
[330854262,1719867040579,-622.24,0.00021917,4]
[330854263,1719867040589,-969.0,0.00021917,4]
[330854264,1719867040598,-969.0,0.00021917,4]
[330854265,1719867040609,-969.0,0.00021917,4]
[330854266,1719867040618,-969.0,0.00021917,4]
[330854267,1719867040628,-969.0,0.00021917,4]
[330854268,1719867040637,-969.0,0.00021917,4]
[330854269,1719867040646,-969.0,0.00021917,4]
[330854270,1719867040655,-969.0,0.00021917,4]
[330854271,1719867040665,-500.0,0.00021917,4]
[330854272,1719867040679,-500.0,0.00021917,4]
[330854273,1719867040688,-500.0,0.00021917,4]
[330854274,1719867040698,-500.0,0.00021917,4]
[330854275,1719867040707,-416.92524304,0.00021917,4]
[330854276,1719867040717,-500.0,0.00021917,4]
[330854277,1719867040727,-500.0,0.00021917,4]
[330854278,1719867040735,-500.0,0.00021917,4]
[330854279,1719867040745,-500.0,0.00021917,4]
[330854280,1719867040756,-500.0,0.00021917,4]
[330854281,1719867040765,-500.0,0.00021917,4]
[330854282,1719867040774,-500.0,0.00021917,4]
[330854283,1719867040783,-500.0,0.00021917,4]
[330854284,1719867040792,-500.0,0.00021917,4]
[330854285,1719867040801,-576.12,0.00021917,4]
[330854286,1719867040810,-500.0,0.00021917,4]
[330854287,1719867040819,-500.0,0.00021917,4]
[330854288,1719867040828,-500.0,0.00021917,4]
[330854289,1719867040837,-500.0,0.00021917,4]
[330854290,1719867040847,-371.63,0.00021917,2]
[330854291,1719867040856,-500.0,0.00021917,4]
[330854292,1719867040866,-500.0,0.00021917,4]
[330854293,1719867040876,-500.0,0.00021917,4]
[330854294,1719867040885,-500.0,0.00021917,4]
[330854295,1719867040894,-500.0,0.00021917,4]
[330854296,1719867040903,-1816.24,0.00021917,4]
[330854297,1719867040913,-1816.24,0.00021917,4]
[330854298,1719867040922,-1816.24,0.00021917,4]
[330854299,1719867040931,-1816.24,0.00021917,4]
[330854300,1719867040939,-1816.24,0.00021917,4]
[330854301,1719867040949,-1816.24,0.00021917,4]
[330854302,1719867040959,-1816.24,0.00021917,4]
[330854303,1719867040968,-1816.24,0.00021917,4]
[330854304,1719867040978,-1816.24,0.00021917,4]
[330854305,1719867040987,-1816.24,0.00021917,4]
[330854306,1719867040996,-1816.24,0.00021917,4]
[330854307,1719867041005,-1816.24,0.00021917,4]
[330854308,1719867041014,-1816.24,0.00021917,4]
[330854309,1719867041023,-500.0,0.00021917,4]
[330854310,1719867041032,-500.0,0.00021917,4]
[330854311,1719867041041,-500.0,0.00021917,4]
[330854312,1719867041051,-500.0,0.00021917,4]
[330854313,1719867041060,-500.0,0.00021917,4]
[330854314,1719867041069,-500.0,0.00021917,4]
[330854315,1719867041078,-500.0,0.00021917,4]
[330854316,1719867041087,-500.0,0.00021917,4]
[330854317,1719867041096,-500.0,0.00021917,4]
[330854318,1719867041106,-500.0,0.00021917,4]
[330854319,1719867041115,-571.94,0.00021917,4]
[330854320,1719867041126,-571.94,0.00021917,4]
[330854321,1719867041135,-571.94,0.00021917,4]
[330854322,1719867041144,-571.94,0.00021917,4]
[330854323,1719867041153,-571.94,0.00021917,4]
[330854324,1719867041163,-751.76,0.00021917,4]
[330854325,1719867041172,-751.76,0.00021917,4]
[330854326,1719867041181,-571.94,0.00021917,4]
[330854327,1719867041190,-751.76,0.00021917,4]
[330854328,1719867041200,-571.94,0.00021917,4]
[330854329,1719867041209,-751.76,0.00021917,4]
[330854330,1719867041219,-571.94,0.00021917,4]
[330854331,1719867041228,-571.94,0.00021917,4]
[330854332,1719867041237,-751.76,0.00021917,4]
[330854333,1719867041246,-751.76,0.00021917,4]
[330854334,1719867041255,-571.94,0.00021917,4]
[330854335,1719867041265,-751.76,0.00021917,4]
[330854336,1719867041274,-571.94,0.00021917,4]
[330854337,1719867041284,-751.76,0.00021917,4]
[330854338,1719867041293,-571.94,0.00021917,4]
[330854339,1719867041302,-751.76,0.00021917,4]
[330854340,1719867041311,-571.94,0.00021917,4]
[330854341,1719867041320,-751.76,0.00021917,4]
[330854342,1719867041329,-751.76,0.00021917,4]
[330854343,1719867041339,-751.76,0.00021917,4]
[330854344,1719867041348,-751.76,0.00021917,4]
[330854345,1719867041358,-751.76,0.00021917,4]
[330854346,1719867041367,-751.76,0.00021917,4]
[330854347,1719867041379,-751.76,0.00021917,4]
[330854348,1719867041392,-751.76,0.00021917,4]
[330854349,1719867041401,-751.76,0.00021917,4]
[330854350,1719867041411,-751.76,0.00021917,4]
[330854351,1719867041420,-751.76,0.00021917,4]
[330854352,1719867041429,-751.76,0.00021917,4]
[330854353,1719867041438,-751.76,0.00021917,4]
[330854354,1719867041447,-751.76,0.00021917,4]
[330854355,1719867041456,-751.77,0.00021917,4]
[330854356,1719867041465,-164.25840791,0.00021917,4]
[330854357,1719867041482,-1224.22159209,0.00021917,4]
[330854358,1719867041492,-151.0,0.00021917,2]
[330854359,1719867041502,-1388.48,0.00021917,4]
[330854360,1719867041512,-1388.48,0.00021917,4]
[330854361,1719867041521,-1515.09,0.00021917,4]
[330854362,1719867041531,-1388.48,0.00021917,4]
[330854363,1719867041540,-1515.09,0.00021917,4]
[330854364,1719867041550,-1515.09,0.00021917,4]
[330854365,1719867041559,-1388.48,0.00021917,4]
[330854366,1719867041569,-1388.48,0.00021917,4]
[330854367,1719867041579,-1515.09,0.00021917,4]
[330854368,1719867041589,-3231.90686343,0.00021917,4]
[330854369,1719867041603,-1068.94313657,0.00021917,4]
[330854370,1719867041612,-183.6833824,0.00021917,4]
[330854371,1719867041632,-288.40183904,0.00021917,4]
[330854372,1719867041653,-916.39477856,0.00021917,4]
[330854373,1719867041662,-397.8144119,0.00021917,4]
[330854374,1719867041686,-268.65513685,0.00021917,4]
[330854375,1719867041697,-1466.34820665,0.00021917,4]
[330854376,1719867041708,-1146.80056203,0.00021917,4]
[330854377,1719867041720,-440.35402731,0.00021917,4]
[330854380,1719867042794,-580.87765526,0.00021917,4]
[330854381,1719867042805,-695.5494042,0.00021917,4]
[330854382,1719867043086,-1002.19858648,0.00021917,4]
[330854522,1719867300344,1247.36037009,0.00011199,2]
[330854527,1719867469379,227.0716558,0.00011199,2]
[330854628,1719867959408,227.0716558,0.00011199,2]
[330854631,1719867997124,482.87871356,0.00011199,2]
[330854661,1719868174138,-258.6924005,0.00012314,2]
[330854662,1719868174158,-155.0,0.00012314,2]
[330854663,1719868174178,-308.12292157,0.00013128,2]
[330854664,1719868174196,-155.05946444,0.00013128,2]
[330854665,1719868174216,-155.27672255,0.00013472,2]
[330854666,1719868174236,-657.39902336,0.00013516,2]
[330854675,1719868231845,-689.73177959,0.00013543,2]
[330854676,1719868231855,-1366.17899642,0.00013576,2]
[330854677,1719868231865,-487.38,0.00017157,2]
[330854678,1719868231874,-2478.59,0.00019089,2]
[330854679,1719868231883,-600.0,0.00019154,2]
[330854680,1719868231893,-499.99,0.00019178,2]
[330854681,1719868231902,-250.0,0.00019178,2]
[330854682,1719868231911,-500.0,0.000192,7]
[330854683,1719868231920,-250.0,0.00019391,2]
[330854684,1719868231929,-487.38,0.00019421,2]
[330854685,1719868231938,-1024.05,0.00019532,3]
[330854686,1719868231948,-250.0,0.00019536,2]
[330854687,1719868231957,-170.22,0.00019642,2]
[330854688,1719868231966,-167.47,0.00019713,2]
[330854689,1719868231975,-755.11,0.00019713,30]
[330854690,1719868231984,-150.0,0.00019775,4]
[330854691,1719868231994,-848.0,0.000199,3]
[330854692,1719868232003,-545.26,0.00019979,2]
[330854693,1719868232013,-2318.96,0.00020017,2]
[330854694,1719868232026,-150.90846154,0.00020267,2]
[330854695,1719868232035,-600.0,0.00020291,2]
[330854696,1719868232044,-2734.230879,0.00020592,2]
[330854697,1719868232054,-176.876544,0.00020592,2]
[330854698,1719868232066,-1919.094999,0.00020592,2]
[330854699,1719868232075,-2873.446425,0.00020592,2]
[330854700,1719868232084,-288.601762,0.00020592,2]
[330854701,1719868232096,-479.77375,0.00020592,2]
[330854702,1719868232105,-410.492346,0.00020592,2]
[330854703,1719868232115,-863.666469,0.00020592,2]
[330854704,1719868232124,-299.858594,0.00020592,2]
[330854705,1719868232133,-410.492346,0.00020592,2]
[330854706,1719868232143,-13029.32376072,0.0002084,2]
[330854707,1719868232152,-2734.230879,0.0002085,2]
[330854708,1719868232161,-1919.094999,0.0002085,2]
[330854709,1719868232170,-2873.446425,0.0002085,2]
[330854710,1719868232179,-288.601762,0.0002085,2]
[330854711,1719868232192,-479.77375,0.0002085,2]
[330854712,1719868232201,-410.492346,0.0002085,2]
[330854713,1719868232211,-863.666469,0.0002085,2]
[330854714,1719868232220,-299.858594,0.0002085,2]
[330854715,1719868232229,-410.492346,0.0002085,2]
[330854716,1719868232238,-14781.204,0.0002085,2]
[330854717,1719868232248,-1400.0,0.000209,7]
[330854718,1719868232257,-4529.4146,0.00020933,2]
[330854719,1719868232267,-742.05373931,0.00020936,2]
[330854720,1719868232277,-871.52380396,0.00020936,2]
[330854721,1719868232286,-225.19167095,0.00021,2]
[330854722,1719868232295,-2800.0,0.00021,7]
[330854723,1719868232304,-4321.8883,0.00021007,2]
[330854724,1719868232313,-2500.0,0.00021007,2]
[330854725,1719868232322,-30037.0164,0.00021033,2]
[330854727,1719868232331,-1838.7809,0.00021033,2]
[330854729,1719868232340,-80980.2567,0.00021033,2]
[330854730,1719868232351,-158.75288573,0.00021036,2]
[330854731,1719868232361,-327.18357985,0.00021036,2]
[330854732,1719868232370,-742.0537393,0.00021099,2]
[330854733,1719868232380,-871.52380388,0.00021099,2]
[330854734,1719868232389,-4200.0,0.000211,7]
[330854735,1719868232398,-391.7049,0.000211,2]
[330854736,1719868232407,-2734.230879,0.00021107,2]
[330854737,1719868232417,-1919.094999,0.00021107,2]
[330854738,1719868232426,-2873.446425,0.00021107,2]
[330854739,1719868232435,-288.601762,0.00021107,2]
[330854740,1719868232445,-479.77375,0.00021107,2]
[330854741,1719868232455,-410.492346,0.00021107,2]
[330854742,1719868232467,-863.666469,0.00021107,2]
[330854743,1719868232476,-299.858594,0.00021107,2]
[330854744,1719868232485,-410.492346,0.00021107,2]
[330854745,1719868232494,-245000.0,0.00021133,2]
[330854746,1719868232503,-600.0,0.00021136,2]
[330854747,1719868232512,-1000.0,0.00021168,2]
[330854748,1719868232522,-5700.0,0.000212,7]
[330854749,1719868232534,-500.0,0.00021227,2]
[330854750,1719868232543,-742.0537393,0.00021261,2]
[330854751,1719868232553,-871.52380388,0.00021261,2]
[330854752,1719868232562,-500.0,0.00021265,2]
[330854753,1719868232572,-7100.0,0.000213,7]
[330854754,1719868232582,-151.0,0.00021313,7]
[330854755,1719868232591,-150.0,0.00021342,2]
[330854756,1719868232603,-150.0,0.00021342,2]
[330854757,1719868232613,-2734.230879,0.00021365,2]
[330854758,1719868232626,-1919.094999,0.00021365,2]
[330854759,1719868232635,-2873.446425,0.00021365,2]
[330854760,1719868232644,-288.601762,0.00021365,2]
[330854761,1719868232654,-479.77375,0.00021365,2]
[330854762,1719868232663,-410.492346,0.00021365,2]
[330854763,1719868232672,-863.666469,0.00021365,2]
[330854764,1719868232682,-299.858594,0.00021365,2]
[330854765,1719868232691,-410.492346,0.00021365,2]
[330854766,1719868232700,-152.0,0.00021371,3]
[330854767,1719868232709,-1400.0,0.000214,7]
[330854768,1719868232718,-742.0537393,0.00021424,2]
[330854769,1719868232728,-871.52380388,0.00021424,2]
[330854770,1719868232737,-158.75288571,0.00021431,2]
[330854771,1719868232746,-1090.9535631,0.00021479,2]
[330854772,1719868232755,-1101.78670602,0.00021479,2]
[330854773,1719868232764,-1034.73348699,0.00021479,2]
[330854774,1719868232774,-254.070206,0.00021498,2]
[330854775,1719868232783,-1400.0,0.000215,7]
[330854776,1719868232793,-500.88890934,0.00021507,2]
[330854777,1719868232802,-379.49243244,0.00021543,5]
[330854778,1719868232812,-600.0,0.00021549,2]
[330854779,1719868232822,-742.0537393,0.00021587,2]
[330854780,1719868232831,-871.52380388,0.00021587,2]
[330854781,1719868232840,-500.88890934,0.00021589,2]
[330854782,1719868232852,-15044.4572489,0.0002159,3]
[330854783,1719868232863,-1400.0,0.000216,7]
[330854784,1719868232872,-2500.0,0.000216,2]
[330854785,1719868232885,-2734.230879,0.00021622,2]
[330854786,1719868232895,-1919.094999,0.00021622,2]
[330854787,1719868232904,-2873.446425,0.00021622,2]
[330854788,1719868232913,-288.601762,0.00021622,2]
[330854789,1719868232923,-479.77375,0.00021622,2]
[330854790,1719868232933,-410.492346,0.00021622,2]
[330854791,1719868232942,-863.666469,0.00021622,2]
[330854792,1719868232951,-299.858594,0.00021622,2]
[330854793,1719868232961,-410.492346,0.00021622,2]
[330854794,1719868232971,-151.0,0.0002164,2]
[330854795,1719868232980,-424.94,0.00021644,2]
[330854796,1719868232989,-150.0,0.00021654,2]
[330854797,1719868232998,-15044.4572489,0.00021666,3]
[330854798,1719868233008,-305.67,0.00021671,2]
[330854799,1719868233022,-1055.03,0.00021671,2]
[330854800,1719868233031,-150.0,0.00021671,2]
[330854801,1719868233040,-164.75,0.00021671,2]
[330854802,1719868233051,-423.92,0.00021671,2]
[330854803,1719868233062,-524.73,0.00021671,2]
[330854804,1719868233071,-354.62,0.00021671,2]
[330854805,1719868233080,-15044.4572489,0.0002168,3]
[330854806,1719868233090,-150.0,0.00021683,2]
[330854807,1719868233101,-487.38,0.00021685,2]
[330854808,1719868233110,-150.0,0.00021685,2]
[330854809,1719868233120,-150.0,0.00021686,2]
[330854810,1719868233130,-150.0,0.00021688,2]
[330854811,1719868233139,-150.0,0.00021689,2]
[330854812,1719868233148,-15044.4572489,0.0002169,3]
[330854813,1719868233158,-166.49751087,0.0002169,2]
[330854814,1719868233167,-150.0,0.00021695,2]
[330854815,1719868233176,-150.0,0.00021695,2]
[330854816,1719868233188,-500.88890934,0.00021699,2]
[330854817,1719868233198,-1400.0,0.000217,7]
[330854818,1719868233208,-30228.11923521,0.000217,2]
[330854819,1719868233219,-973.56474,0.000217,2]
[330854820,1719868233228,-1698.0,0.000217,2]
[330854821,1719868233237,-150.0,0.00021705,2]
[330854822,1719868233247,-150.0,0.00021709,2]
[330854823,1719868233256,-150.0,0.00021711,2]
[330854824,1719868233266,-150.0,0.00021712,2]
[330854825,1719868233275,-150.0,0.00021717,2]
[330854826,1719868233284,-150.0,0.00021727,2]
[330854827,1719868233295,-150.0,0.00021729,2]
[330854828,1719868233304,-150.0,0.00021732,2]
[330854829,1719868233313,-150.0,0.00021732,2]
[330854830,1719868233322,-150.0,0.00021733,2]
[330854831,1719868233331,-150.0,0.00021735,2]
[330854832,1719868233340,-150.0,0.00021735,2]
[330854833,1719868233349,-150.0,0.00021736,2]
[330854834,1719868233359,-150.0,0.00021738,2]
[330854835,1719868233368,-500.0,0.00021741,2]
[330854836,1719868233377,-500.0,0.00021742,2]
[330854837,1719868233386,-500.0,0.00021742,2]
[330854838,1719868233397,-200.0,0.00021742,2]
[330854839,1719868233407,-150.0,0.00021742,2]
[330854840,1719868233417,-150.0,0.00021745,2]
[330854841,1719868233426,-150.0,0.00021745,2]
[330854842,1719868233436,-151.0,0.00021748,4]
[330854843,1719868233445,-150.0,0.00021749,2]
[330854844,1719868233455,-742.0537393,0.00021749,2]
[330854845,1719868233464,-871.52380388,0.00021749,2]
[330854846,1719868233474,-150.0,0.00021756,2]
[330854847,1719868233483,-150.0,0.00021761,2]
[330854848,1719868233493,-150.0,0.00021762,2]
[330854849,1719868233502,-150.0,0.00021763,2]
[330854850,1719868233512,-150.0,0.0002177,2]
[330854851,1719868233521,-150.0,0.00021773,2]
[330854852,1719868233531,-150.0,0.00021773,2]
[330854853,1719868233540,-150.0,0.00021775,2]
[330854854,1719868233550,-500.88890934,0.00021781,2]
[330854855,1719868233559,-150.0,0.00021782,2]
[330854856,1719868233568,-150.0,0.00021787,2]
[330854857,1719868233578,-15044.4572489,0.0002179,3]
[330854858,1719868233587,-150.0,0.00021794,2]
[330854859,1719868233596,-1856.0,0.000218,7]
[330854860,1719868233606,-150.0,0.00021802,2]
[330854861,1719868233615,-150.0,0.00021804,2]
[330854862,1719868233626,-150.0,0.00021804,2]
[330854863,1719868233636,-150.0,0.00021805,2]
[330854864,1719868233645,-150.0,0.00021805,2]
[330854865,1719868233656,-45133.3717467,0.00021807,3]
[330854866,1719868233667,-165.17573026,0.00021808,2]
[330854867,1719868233676,-4112.86513391,0.00021808,2]
[330854868,1719868233685,-150.0,0.00021808,2]
[330854869,1719868233695,-150.0,0.00021809,2]
[330854870,1719868233706,-150.0,0.00021813,2]
[330854871,1719868233716,-150.0,0.00021814,2]
[330854872,1719868233726,-620.0,0.00021815,2]
[330854873,1719868233736,-1000.0,0.00021817,2]
[330854874,1719868233745,-19051.7307,0.00021817,2]
[330854875,1719868233755,-501.1919,0.00021817,2]
[330854876,1719868233765,-281.1116,0.00021817,2]
[330854877,1719868233774,-9036.2442,0.00021817,2]
[330854878,1719868233784,-37689.92358334,0.00021817,2]
[330854879,1719868233823,-1690.22291666,0.00021817,2]
[330854880,1719868233834,-809.77708334,0.00021817,2]
[330854881,1719868237990,-3037.806753,0.00018081,2]
[330854882,1719868238000,-2200.40371666,0.00021817,2]
[330854883,1719868238010,-4658.8819377,0.00021817,2]
[330854884,1719868238149,-2841.1180623,0.00021817,2]
[330854885,1719868238159,-358.0,0.00021818,2]
[330854886,1719868238169,-1820.0,0.00021818,2]
[330854887,1719868238179,-442.0,0.00021818,2]
[330854888,1719868238189,-812.0,0.00021818,2]
[330854889,1719868238198,-618.0,0.00021818,2]
[330854890,1719868238208,-166.0,0.00021818,2]
[330854891,1719868238217,-448.0,0.00021818,2]
[330854892,1719868238227,-1293.0,0.00021818,2]
[330854893,1719868238236,-2408.0,0.00021818,2]
[330854894,1719868238246,-150.0,0.00021819,2]
[330854895,1719868238256,-150.0,0.0002182,2]
[330854896,1719868238265,-150.0,0.00021822,2]
[330854897,1719868238275,-150.0,0.00021822,2]
[330854898,1719868238284,-169.88866674,0.00021825,2]
[330854899,1719868238294,-810.0,0.00021825,2]
[330854901,1719868238304,-158.75288571,0.00021825,2]
[330854903,1719868238314,-150.0,0.00021829,2]
[330854905,1719868238323,-150.0,0.0002183,2]
[330854908,1719868238334,-15044.4572489,0.0002183,3]
[330854910,1719868238343,-150.0,0.00021831,2]
[330854911,1719868238354,-150.0,0.00021833,2]
[330854913,1719868238363,-150.0,0.00021834,2]
[330854916,1719868238372,-12762.29138076,0.00021835,3]
[330854918,1719868238382,-1487.74271587,0.00021837,10]
[330854920,1719868238392,-150.0,0.00021843,2]
[330854922,1719868238402,-150.0,0.00021849,2]
[330854924,1719868238411,-150.0,0.00021856,2]